fUSD/lending_fUSD_20240613
["ID","MTS","AMOUNT","RATE_DAILY","PERIOD"]
[329373411,1718290383490,-500.0,0.00028767,3]
[329373412,1718290383564,-12766.99,0.00028767,3]
[329373413,1718290383585,-513.36,0.00028767,3]
[329373414,1718290383597,-500.0,0.00028767,3]
[329373415,1718290383608,-559.41,0.00028767,3]
[329373416,1718290383621,-679.33,0.00028767,3]
[329373417,1718290383685,-3794.7,0.00028767,3]
[329373418,1718290383705,-500.0,0.00028767,3]
[329373419,1718290383716,-500.0,0.00028767,3]
[329373420,1718290383726,-1057.5,0.00028767,3]
[329373421,1718290383740,-500.0,0.00028767,3]
[329373422,1718290383752,-2414.22,0.00028767,3]
[329373423,1718290383761,-500.0,0.00028767,3]
[329373424,1718290383772,-500.0,0.00028767,3]
[329373425,1718290383783,-654.22,0.00028767,3]
[329373426,1718290383794,-1125.9,0.00028767,3]
[329373427,1718290383806,-500.0,0.00028767,3]
[329373428,1718290383816,-941.25,0.00028767,3]
[329373429,1718290383827,-500.0,0.00028767,3]
[329373430,1718290383840,-531.14,0.00028767,3]
[329373431,1718290383851,-500.0,0.00028767,3]
[329373432,1718290383884,-500.0,0.00028767,3]
[329373433,1718290383895,-1033.7,0.00028767,3]
[329373434,1718290383922,-539.4,0.00028767,3]
[329373435,1718290383973,-2592.34,0.00028767,3]
[329373436,1718290383989,-500.0,0.00028767,3]
[329373437,1718290384020,-588.3,0.00028767,3]
[329373438,1718290384066,-500.0,0.00028767,3]
[329373439,1718290384106,-500.0,0.00028767,3]
[329373440,1718290384124,-570.91,0.00028767,3]
[329373441,1718290384160,-1292.93,0.00028767,3]
[329373442,1718290384192,-637.83,0.00028767,3]
[329373443,1718290384206,-533.76,0.00028767,3]
[329373444,1718290384238,-816.12,0.00028767,3]
[329373445,1718290384275,-2201.98,0.00028767,3]
[329373446,1718290384310,-990.35,0.00028767,3]
[329373447,1718290384333,-866.3,0.00028767,3]
[329373448,1718290384364,-1827.63,0.00028767,3]
[329373449,1718290384391,-1039.78,0.00028767,3]
[329373450,1718290384436,-1377.98,0.00028767,3]
[329373451,1718290384449,-511.34,0.00028767,3]
[329373452,1718290384482,-500.0,0.00028767,3]
[329373453,1718290384523,-1395.84,0.00028767,3]
[329373454,1718290384572,-653.41,0.00028767,3]
[329373455,1718290384599,-4825.81,0.00028767,3]
[329373456,1718290384629,-437.06786098,0.00028767,3]
[329373457,1718290384657,-500.0,0.00028767,3]
[329373458,1718290384672,-689.6,0.00028767,3]
[329373459,1718290384704,-2127.64,0.00028767,3]
[329373460,1718290384717,-761.09,0.00028767,3]
[329373461,1718290384730,-447.62917179,0.00028767,3]
[329373462,1718290384746,-587.76,0.00028767,3]
[329373463,1718290384765,-605.86,0.00028767,3]
[329373464,1718290384811,-482.00845438,0.00028767,3]
[329373465,1718290384831,-1177.4,0.00028767,3]
[329373466,1718290384844,-920.47,0.00028767,3]
[329373467,1718290384865,-1386.9,0.00028767,3]
[329373468,1718290384904,-744.26,0.00028767,3]
[329373469,1718290384965,-887.49,0.00028767,3]
[329373470,1718290384986,-338.01755773,0.00028767,3]
[329373471,1718290385025,-7491.49,0.00028767,3]
[329373472,1718290385045,-2324.66,0.00028767,3]
[329373473,1718290385068,-150.0,0.00028778,2]
[329373474,1718290385124,-153.68250368,0.00028778,2]
[329373475,1718290385135,-152.1899555,0.00028861,2]
[329373476,1718290385164,-220.82633046,0.00028897,7]
[329373477,1718290385184,-221.32,0.00028897,7]
[329373478,1718290385240,-160.73733124,0.00028897,7]
[329373479,1718290385296,-160.73733124,0.00028897,7]
[329373480,1718290385308,-160.73733124,0.00028897,7]
[329373481,1718290385326,-160.73733124,0.00028897,7]
[329373482,1718290385338,-160.73733124,0.00028897,7]
[329373483,1718290385544,-160.73733124,0.00028897,7]
[329373484,1718290385577,-160.73733124,0.00028897,7]
[329373485,1718290385590,-160.73733124,0.00028897,7]
[329373486,1718290385609,-160.73733124,0.00028897,7]
[329373487,1718290385658,-150.59,0.00028919,2]
[329373488,1718290385689,-152.96556497,0.00028957,2]
[329373489,1718290385717,-1665.77462,0.00028973,2]
[329373490,1718290385737,-860.912888,0.00028973,2]
[329373491,1718290385753,-1523.127579,0.00028973,2]
[329373492,1718290385782,-1678.62508,0.00028973,2]
[329373493,1718290385806,-126048.62333853,0.00028996,2]
[329373494,1718290385829,-139599.1151002,0.00028997,2]
[329373495,1718290385857,-5286.4,0.00028999,30]
[329373496,1718290385885,-150.0,0.00028999,7]
[329373497,1718290385909,-2025.93185722,0.00029,5]
[329373498,1718290385940,-1000000.0,0.00029,4]
[329373499,1718290385976,-931.008094,0.00029,5]
[329373500,1718290386013,-6566.77080827,0.00029,2]
[329373501,1718290386044,-20070.0,0.00029,5]
[329373502,1718290386077,-150.0,0.00029,2]
[329373503,1718290386130,-500.20667251,0.00029,2]
[329373504,1718290386148,-501.0,0.00029,30]
[329373505,1718290386162,-330.21952799,0.00029026,2]
[329373506,1718290386176,-166.66666668,0.00029028,2]
[329373507,1718290386236,-152.96556497,0.0002903,2]
[329373508,1718290386250,-568.4920956,0.00029041,3]
[329373509,1718290386286,-500.0,0.00029041,3]
[329373510,1718290386313,-500.98,0.00029041,3]
[329373511,1718290386324,-500.0,0.00029041,3]
[329373512,1718290386344,-182.27,0.00029041,3]
[329373513,1718290386370,-809.41,0.00029041,3]
[329373514,1718290386392,-507.94,0.00029041,3]
[329373515,1718290386421,-1934.26,0.00029041,3]
[329373516,1718290386439,-544.35,0.00029041,3]
[329373517,1718290386451,-879.88,0.00029041,3]
[329373518,1718290386462,-1048.93,0.00029041,3]
[329373519,1718290386474,-1012.91,0.00029041,3]
[329373520,1718290386485,-11632.61,0.00029041,3]
[329373521,1718290386504,-977.44,0.00029041,3]
[329373522,1718290386544,-639.07,0.00029041,3]
[329373523,1718290386572,-651.87,0.00029041,3]
[329373524,1718290386589,-997.51,0.00029041,3]
[329373525,1718290386616,-1311.35,0.00029041,3]
[329373526,1718290386632,-643.19,0.00029041,3]
[329373527,1718290386644,-2199.7,0.00029041,3]
[329373528,1718290386672,-1295.74,0.00029041,3]
[329373529,1718290386700,-613.68,0.00029041,3]
[329373530,1718290386721,-1323.91,0.00029041,3]
[329373531,1718290386744,-1550.77,0.00029041,3]
[329373532,1718290386766,-975.22,0.00029041,3]
[329373533,1718290386792,-500.0,0.00029041,3]
[329373534,1718290386804,-12766.99,0.00029041,3]
[329373535,1718290386822,-513.36,0.00029041,3]
[329373536,1718290386844,-559.41,0.00029041,3]
[329373537,1718290386860,-500.0,0.00029041,3]
[329373538,1718290386892,-679.33,0.00029041,3]
[329373539,1718290386927,-3794.7,0.00029041,3]
[329373540,1718290386944,-469.68425155,0.00029041,3]
[329373541,1718290386960,-500.0,0.00029041,3]
[329373542,1718290386973,-1057.5,0.00029041,3]
[329373543,1718290386996,-500.0,0.00029041,3]
[329373544,1718290387014,-2414.22,0.00029041,3]
[329373545,1718290387039,-592.77594252,0.00029041,3]
[329373546,1718290387054,-544.5507789,0.00029041,3]
[329373547,1718290387070,-654.22,0.00029041,3]
[329373548,1718290387124,-1125.9,0.00029041,3]
[329373549,1718290387150,-500.0,0.00029041,3]
[329373550,1718290387174,-941.25,0.00029041,3]
[329373551,1718290387189,-500.0,0.00029041,3]
[329373552,1718290387208,-531.14,0.00029041,3]
[329373553,1718290387230,-345.75,0.00029041,3]
[329373554,1718290387244,-500.0,0.00029041,3]
[329373555,1718290387288,-1033.7,0.00029041,3]
[329373556,1718290387309,-2592.34,0.00029041,3]
[329373557,1718290387364,-500.0,0.00029041,3]
[329373558,1718290387395,-588.3,0.00029041,3]
[329373559,1718290387461,-502.73487955,0.00029041,3]
[329373560,1718290387496,-500.0,0.00029041,3]
[329373561,1718290387540,-1292.93,0.00029041,3]
[329373562,1718290387554,-637.83,0.00029041,3]
[329373563,1718290387569,-533.76,0.00029041,3]
[329373564,1718290387600,-816.12,0.00029041,3]
[329373565,1718290387611,-2201.98,0.00029041,3]
[329373566,1718290387623,-990.35,0.00029041,3]
[329373567,1718290387642,-866.3,0.00029041,3]
[329373568,1718290387654,-1039.78,0.00029041,3]
[329373569,1718290387700,-1827.63,0.00029041,3]
[329373570,1718290387711,-1377.98,0.00029041,3]
[329373571,1718290387723,-511.34,0.00029041,3]
[329373572,1718290387736,-500.0,0.00029041,3]
[329373573,1718290387751,-1395.84,0.00029041,3]
[329373574,1718290387764,-653.41,0.00029041,3]
[329373575,1718290387778,-4825.81,0.00029041,3]
[329373576,1718290387790,-500.0,0.00029041,3]
[329373577,1718290387833,-689.6,0.00029041,3]
[329373578,1718290387860,-2127.64,0.00029041,3]
[329373579,1718290387879,-761.09,0.00029041,3]
[329373580,1718290387893,-587.76,0.00029041,3]
[329373581,1718290387911,-605.86,0.00029041,3]
[329373582,1718290387926,-1177.4,0.00029041,3]
[329373583,1718290387984,-920.47,0.00029041,3]
[329373584,1718290388020,-1386.9,0.00029041,3]
[329373585,1718290388034,-744.26,0.00029041,3]
[329373586,1718290388052,-887.49,0.00029041,3]
[329373587,1718290388078,-7491.49,0.00029041,3]
[329373588,1718290388098,-2324.66,0.00029041,3]
[329373589,1718290388111,-404.879475,0.00029041,7]
[329373590,1718290388127,-404.879475,0.00029041,7]
[329373591,1718290388140,-404.879475,0.00029041,7]
[329373592,1718290388182,-404.879475,0.00029041,7]
[329373593,1718290388195,-404.879475,0.00029041,7]
[329373594,1718290388208,-404.879475,0.00029041,7]
[329373595,1718290388223,-154.24759554,0.00029042,2]
[329373596,1718290388255,-154.20874861,0.00029042,2]
[329373597,1718290388269,-154.24759554,0.00029052,2]
[329373598,1718290388310,-150.0,0.00029069,7]
[329373599,1718290388329,-50000.0,0.0002907,2]
[329373600,1718290388341,-1483.75484,0.00029087,2]
[329373601,1718290388354,-783.766751,0.00029087,2]
[329373602,1718290388368,-441.529175,0.00029087,2]
[329373603,1718290388379,-76082.0,0.000291,2]
[329373604,1718290388393,-150.0,0.000291,6]
[329373605,1718290388420,-216.0,0.0002912,2]
[329373606,1718290388432,-5498.72940758,0.0002913,10]
[329373607,1718290388444,-166.70033267,0.00029167,2]
[329373608,1718290388456,-330.21952799,0.00029194,2]
[329373609,1718290388471,-157.96553432,0.00029208,2]
[329373610,1718290388484,-152.1899555,0.00029211,2]
[329373611,1718290388500,-154.24759554,0.00029271,2]
[329373612,1718290388511,-5000.0,0.00029279,2]
[329373613,1718290388539,-330.21952799,0.0002931,2]
[329373614,1718290388553,-500.0,0.00029314,2]
[329373615,1718290388565,-2900.0,0.00029314,2]
[329373616,1718290388577,-500.0,0.00029315,3]
[329373617,1718290388588,-500.98,0.00029315,3]
[329373618,1718290388601,-201.96181836,0.00029315,3]
[329373619,1718290388616,-182.27,0.00029315,3]
[329373620,1718290388633,-809.41,0.00029315,3]
[329373621,1718290388644,-507.94,0.00029315,3]
[329373622,1718290388658,-1934.26,0.00029315,3]
[329373623,1718290388674,-544.35,0.00029315,3]
[329373624,1718290388694,-879.88,0.00029315,3]
[329373625,1718290388722,-1048.93,0.00029315,3]
[329373626,1718290388758,-1012.91,0.00029315,3]
[329373627,1718290388769,-11632.61,0.00029315,3]
[329373628,1718290388787,-977.44,0.00029315,3]
[329373629,1718290388829,-639.07,0.00029315,3]
[329373630,1718290388860,-651.87,0.00029315,3]
[329373631,1718290388874,-997.51,0.00029315,3]
[329373632,1718290388898,-1311.35,0.00029315,3]
[329373633,1718290388914,-643.19,0.00029315,3]
[329373634,1718290388953,-2199.7,0.00029315,3]
[329373635,1718290388965,-1295.74,0.00029315,3]
[329373636,1718290388987,-613.68,0.00029315,3]
[329373637,1718290388999,-1323.91,0.00029315,3]
[329373638,1718290389015,-975.22,0.00029315,3]
[329373639,1718290389032,-1550.77,0.00029315,3]
[329373640,1718290389049,-307.52669125,0.00029315,3]
[329373641,1718290389062,-513.36,0.00029315,3]
[329373642,1718290389074,-12766.99,0.00029315,3]
[329373643,1718290389106,-559.41,0.00029315,3]
[329373644,1718290389148,-500.0,0.00029315,3]
[329373645,1718290389165,-679.33,0.00029315,3]
[329373646,1718290389195,-3794.7,0.00029315,3]
[329373647,1718290389208,-500.0,0.00029315,3]
[329373648,1718290389226,-1057.5,0.00029315,3]
[329373649,1718290389253,-2414.22,0.00029315,3]
[329373650,1718290389281,-500.0,0.00029315,3]
[329373651,1718290389293,-654.22,0.00029315,3]
[329373652,1718290389310,-1125.9,0.00029315,3]
[329373653,1718290389326,-500.0,0.00029315,3]
[329373654,1718290389347,-941.25,0.00029315,3]
[329373655,1718290389386,-280.1,0.00029315,3]
[329373656,1718290389399,-531.14,0.00029315,3]
[329373657,1718290389428,-500.0,0.00029315,3]
[329373658,1718290389444,-1033.7,0.00029315,3]
[329373659,1718290389473,-2592.34,0.00029315,3]
[329373660,1718290389506,-500.0,0.00029315,3]
[329373661,1718290389574,-588.3,0.00029315,3]
[329373662,1718290389600,-500.0,0.00029315,3]
[329373663,1718290389612,-1292.93,0.00029315,3]
[329373664,1718290389632,-637.83,0.00029315,3]
[329373665,1718290389644,-533.76,0.00029315,3]
[329373666,1718290389655,-816.12,0.00029315,3]
[329373667,1718290389666,-2201.98,0.00029315,3]
[329373668,1718290389679,-990.35,0.00029315,3]
[329373669,1718290389692,-866.3,0.00029315,3]
[329373670,1718290389702,-1039.78,0.00029315,3]
[329373671,1718290389729,-1827.63,0.00029315,3]
[329373672,1718290389741,-1377.98,0.00029315,3]
[329373673,1718290389753,-511.34,0.00029315,3]
[329373674,1718290389772,-500.0,0.00029315,3]
[329373675,1718290389784,-1395.84,0.00029315,3]
[329373676,1718290389794,-653.41,0.00029315,3]
[329373677,1718290389807,-4825.81,0.00029315,3]
[329373678,1718290389819,-500.0,0.00029315,3]
[329373679,1718290389856,-689.6,0.00029315,3]
[329373680,1718290389883,-2127.64,0.00029315,3]
[329373681,1718290389896,-761.09,0.00029315,3]
[329373682,1718290389908,-587.76,0.00029315,3]
[329373683,1718290389939,-605.86,0.00029315,3]
[329373684,1718290389969,-1177.4,0.00029315,3]
[329373685,1718290389989,-920.47,0.00029315,3]
[329373686,1718290390010,-1386.9,0.00029315,3]
[329373687,1718290390029,-744.26,0.00029315,3]
[329373688,1718290390042,-887.49,0.00029315,3]
[329373689,1718290390063,-7491.49,0.00029315,3]
[329373690,1718290390115,-2324.66,0.00029315,3]
[329373691,1718290390176,-171.51968,0.00029322,2]
[329373692,1718290390213,-1665.77462,0.00029322,2]
[329373693,1718290390249,-860.912888,0.00029322,2]
[329373694,1718290390266,-172.710197,0.00029322,2]
[329373695,1718290390283,-1523.127579,0.00029322,2]
[329373696,1718290390306,-1678.62508,0.00029322,2]
[329373697,1718290390320,-161.903071,0.00029322,2]
[329373698,1718290390340,-160.73733124,0.00029356,7]
[329373699,1718290390362,-767.0,0.00029391,2]
[329373700,1718290390389,-649.0,0.00029391,2]
[329373701,1718290390415,-978.0,0.000294,13]
[329373702,1718290390449,-611.0,0.000294,2]
[329373703,1718290390477,-978.0,0.000294,13]
[329373704,1718290390515,-508.2897,0.000294,2]
[329373705,1718290390535,-500.0,0.00029429,2]
[329373706,1718290390574,-500.0,0.00029429,2]
[329373707,1718290390586,-500.0,0.00029429,2]
[329373708,1718290390647,-500.0,0.00029429,2]
[329373709,1718290390662,-500.0,0.00029429,2]
[329373710,1718290390676,-500.0,0.00029429,2]
[329373711,1718290390691,-172.80511778,0.00029429,3]
[329373712,1718290390708,-500.0,0.00029429,2]
[329373713,1718290390723,-500.0,0.00029429,2]
[329373714,1718290390738,-500.0,0.00029429,2]
[329373715,1718290390761,-500.0,0.00029429,2]
[329373716,1718290390792,-500.0,0.00029429,2]
[329373717,1718290390832,-500.0,0.00029429,2]
[329373718,1718290390863,-500.0,0.00029429,2]
[329373719,1718290390879,-500.0,0.00029429,2]
[329373720,1718290390918,-500.0,0.00029429,2]
[329373721,1718290390930,-500.0,0.00029429,2]
[329373722,1718290390945,-500.0,0.00029429,2]
[329373723,1718290390961,-500.0,0.00029429,2]
[329373724,1718290390973,-500.0,0.00029429,2]
[329373725,1718290390987,-500.0,0.00029429,2]
[329373726,1718290391003,-500.0,0.00029429,2]
[329373727,1718290391020,-500.0,0.00029429,2]
[329373728,1718290391038,-500.0,0.00029429,2]
[329373729,1718290391059,-500.0,0.00029429,2]
[329373730,1718290391093,-500.0,0.00029429,2]
[329373731,1718290391110,-500.0,0.00029429,2]
[329373732,1718290391122,-500.0,0.00029429,2]
[329373733,1718290391132,-500.0,0.00029429,2]
[329373734,1718290391172,-500.0,0.00029429,2]
[329373735,1718290391188,-500.0,0.00029429,2]
[329373736,1718290391210,-500.0,0.00029429,2]
[329373737,1718290391238,-500.0,0.00029429,2]
[329373738,1718290391252,-500.0,0.00029429,2]
[329373739,1718290391264,-500.0,0.00029429,2]
[329373740,1718290391274,-500.0,0.00029429,2]
[329373741,1718290391286,-500.0,0.00029429,2]
[329373742,1718290391300,-500.0,0.00029429,2]
[329373743,1718290391329,-500.0,0.00029429,2]
[329373744,1718290391362,-500.0,0.00029429,2]
[329373745,1718290391375,-500.0,0.00029429,2]
[329373746,1718290391426,-604.82278269,0.00029429,2]
[329373747,1718290391489,-500.0,0.00029429,2]
[329373748,1718290391535,-500.0,0.00029429,2]
[329373749,1718290391546,-500.0,0.00029429,2]
[329373750,1718290391567,-500.0,0.00029429,2]
[329373751,1718290391592,-500.0,0.00029429,2]
[329373752,1718290391603,-500.0,0.00029429,2]
[329373753,1718290391613,-500.0,0.00029429,2]
[329373754,1718290391627,-500.0,0.00029429,2]
[329373755,1718290391639,-500.0,0.00029429,2]
[329373756,1718290391654,-500.0,0.00029429,2]
[329373757,1718290391670,-500.0,0.00029429,2]
[329373758,1718290391688,-500.0,0.00029429,2]
[329373759,1718290391717,-500.0,0.00029429,2]
[329373760,1718290391728,-500.0,0.00029429,2]
[329373761,1718290391769,-500.0,0.00029429,2]
[329373762,1718290391805,-500.0,0.00029429,2]
[329373763,1718290391817,-500.0,0.00029429,2]
[329373764,1718290391840,-500.0,0.00029429,2]
[329373765,1718290391856,-500.0,0.00029429,2]
[329373766,1718290391868,-500.0,0.00029429,2]
[329373767,1718290391884,-500.0,0.00029429,2]
[329373768,1718290391906,-500.0,0.00029429,2]
[329373769,1718290391919,-500.0,0.00029429,2]
[329373770,1718290391932,-489.630468,0.00029429,2]
[329373771,1718290391988,-1040.0,0.00029429,2]
[329373772,1718290392004,-2110.0,0.00029429,15]
[329373773,1718290392021,-154.24759554,0.00029455,2]
[329373774,1718290392044,-330.21952799,0.00029465,2]
[329373775,1718290392055,-157.86625065,0.00029478,2]
[329373776,1718290392066,-150.13799632,0.00029492,2]
[329373777,1718290392116,-154.24759554,0.00029492,2]
[329373778,1718290392136,-157.96553432,0.00029494,2]
[329373779,1718290392150,-89665.23297581,0.000295,10]
[329373780,1718290392176,-1011.0,0.000295,8]
[329373781,1718290392201,-61105.31850227,0.000295,10]
[329373782,1718290392354,-153.68250368,0.00029502,2]
[329373783,1718290392371,-154.24759554,0.00029512,2]
[329373784,1718290392383,-330.21952799,0.00029518,2]
[329373785,1718290392398,-151.07408164,0.00029547,2]
[329373786,1718290392425,-330.21952799,0.00029567,2]
[329373787,1718290392440,-152.96556497,0.00029578,2]
[329373788,1718290392452,-587.36522026,0.00029589,3]
[329373789,1718290392476,-500.98,0.00029589,3]
[329373790,1718290392488,-182.27,0.00029589,3]
[329373791,1718290392500,-809.41,0.00029589,3]
[329373792,1718290392512,-507.94,0.00029589,3]
[329373793,1718290392527,-1934.26,0.00029589,3]
[329373794,1718290392545,-544.35,0.00029589,3]
[329373795,1718290392557,-879.88,0.00029589,3]
[329373796,1718290392570,-1048.93,0.00029589,3]
[329373797,1718290392585,-1012.91,0.00029589,3]
[329373798,1718290392596,-11632.61,0.00029589,3]
[329373799,1718290392608,-977.44,0.00029589,3]
[329373800,1718290392620,-154.24759554,0.00029589,2]
[329373801,1718290392631,-639.07,0.00029589,3]
[329373802,1718290392659,-651.87,0.00029589,3]
[329373803,1718290392700,-997.51,0.00029589,3]
[329373804,1718290392712,-1311.35,0.00029589,3]
[329373805,1718290392725,-643.19,0.00029589,3]
[329373806,1718290392738,-2199.7,0.00029589,3]
[329373807,1718290392749,-1295.74,0.00029589,3]
[329373808,1718290392760,-613.68,0.00029589,3]
[329373809,1718290392777,-1323.91,0.00029589,3]
[329373810,1718290392789,-975.22,0.00029589,3]
[329373811,1718290392820,-1550.77,0.00029589,3]
[329373812,1718290392839,-513.36,0.00029589,3]
[329373813,1718290392855,-12766.99,0.00029589,3]
[329373814,1718290392873,-559.41,0.00029589,3]
[329373815,1718290392885,-500.0,0.00029589,3]
[329373816,1718290392916,-679.33,0.00029589,3]
[329373817,1718290392935,-3794.7,0.00029589,3]
[329373818,1718290392955,-252.55488337,0.00029589,3]
[329373819,1718290392967,-1057.5,0.00029589,3]
[329373820,1718290392980,-2414.22,0.00029589,3]
[329373821,1718290392993,-500.0,0.00029589,3]
[329373822,1718290393020,-654.22,0.00029589,3]
[329373823,1718290393035,-1125.9,0.00029589,3]
[329373824,1718290393046,-500.0,0.00029589,3]
[329373825,1718290393060,-941.25,0.00029589,3]
[329373826,1718290393104,-531.14,0.00029589,3]
[329373827,1718290393123,-488.62946191,0.00029589,3]
[329373828,1718290393134,-1033.7,0.00029589,3]
[329373829,1718290393145,-2592.34,0.00029589,3]
[329373830,1718290393158,-500.0,0.00029589,3]
[329373831,1718290393170,-588.3,0.00029589,3]
[329373832,1718290393181,-500.0,0.00029589,3]
[329373833,1718290393199,-570.91,0.00029589,3]
[329373834,1718290393219,-1292.93,0.00029589,3]
[329373835,1718290393236,-637.83,0.00029589,3]
[329373836,1718290393248,-533.76,0.00029589,3]
[329373837,1718290393272,-816.12,0.00029589,3]
[329373838,1718290393295,-2201.98,0.00029589,3]
[329373839,1718290393311,-990.35,0.00029589,3]
[329373840,1718290393345,-866.3,0.00029589,3]
[329373841,1718290393362,-1039.78,0.00029589,3]
[329373842,1718290393384,-1827.63,0.00029589,3]
[329373843,1718290393396,-1377.98,0.00029589,3]
[329373844,1718290393412,-511.34,0.00029589,3]
[329373845,1718290393426,-500.0,0.00029589,3]
[329373846,1718290393461,-1395.84,0.00029589,3]
[329373847,1718290393488,-653.41,0.00029589,3]
[329373848,1718290393501,-4825.81,0.00029589,3]
[329373849,1718290393553,-236.96463622,0.00029589,3]
[329373850,1718290393574,-689.6,0.00029589,3]
[329373851,1718290393585,-2127.64,0.00029589,3]
[329373852,1718290393599,-761.09,0.00029589,3]
[329373853,1718290393612,-587.76,0.00029589,3]
[329373854,1718290393623,-605.86,0.00029589,3]
[329373855,1718290393636,-1177.4,0.00029589,3]
[329373856,1718290393665,-920.47,0.00029589,3]
[329373857,1718290393677,-1386.9,0.00029589,3]
[329373858,1718290393698,-744.26,0.00029589,3]
[329373859,1718290393711,-887.49,0.00029589,3]
[329373860,1718290393734,-7491.49,0.00029589,3]
[329373861,1718290393746,-330.21952799,0.00029622,2]
[329373862,1718290393758,-153.2913197,0.00029639,2]
[329373863,1718290393770,-330.21952799,0.00029662,2]
[329373864,1718290393798,-152.38627793,0.00029676,2]
[329373865,1718290393814,-330.21952799,0.00029678,2]
[329373866,1718290393861,-150.59,0.0002968,2]
[329373867,1718290393874,-152.1899555,0.0002969,2]
[329373868,1718290393915,-152.96556497,0.00029691,2]
[329373869,1718290393926,-767.0,0.00029694,2]
[329373870,1718290393941,-649.0,0.00029694,2]
[329373871,1718290393962,-260.1492103,0.000297,2]
[329373872,1718290393974,-4117.8423,0.000297,2]
[329373873,1718290393987,-3398.3193,0.000297,2]
[329373874,1718290393999,-4000.0,0.000297,2]
[329373875,1718290394010,-1620.46,0.000297,2]
[329373876,1718290394024,-400.4851659,0.000297,2]
[329373877,1718290394040,-203.0,0.0002973,2]
[329373878,1718290394062,-248325.32734447,0.0002975,2]
[329373879,1718290394091,-152.38627793,0.00029754,2]
[329373880,1718290394113,-500.0,0.00029769,3]
[329373881,1718290394133,-500.0,0.00029778,3]
[329373882,1718290394149,-500.0,0.00029786,3]
[329373883,1718290394173,-500.0,0.00029792,3]
[329373884,1718290394192,-500.0,0.00029795,3]
[329373885,1718290394205,-1000.0,0.000298,8]
[329373886,1718290394216,-10156.0,0.000298,7]
[329373887,1718290394230,-500.0,0.00029801,3]
[329373888,1718290394247,-156.17044264,0.00029802,2]
[329373889,1718290394263,-500.0,0.00029804,3]
[329373890,1718290394284,-500.0,0.0002981,3]
[329373891,1718290394297,-500.0,0.00029815,3]
[329373892,1718290394311,-500.0,0.00029819,3]
[329373893,1718290394329,-500.0,0.00029824,3]
[329373894,1718290394343,-500.0,0.00029828,3]
[329373895,1718290394359,-500.0,0.00029832,3]
[329373896,1718290394376,-330.21952799,0.00029833,2]
[329373897,1718290394388,-500.0,0.00029836,3]
[329373898,1718290394401,-500.0,0.00029838,3]
[329373899,1718290394416,-500.0,0.00029838,3]
[329373900,1718290394427,-500.0,0.00029841,3]
[329373901,1718290394448,-500.0,0.00029847,3]
[329373902,1718290394467,-500.0,0.00029847,3]
[329373903,1718290394477,-500.0,0.0002985,3]
[329373904,1718290394488,-190.84878933,0.00029855,2]
[329373905,1718290394507,-500.0,0.00029856,3]
[329373906,1718290394517,-500.0,0.00029856,3]
[329373907,1718290394527,-700.0,0.00029862,2]
[329373908,1718290394544,-2900.0,0.00029862,2]
[329373909,1718290394560,-3000.0,0.00029862,2]
[329373910,1718290394579,-500.0,0.00029862,2]